fUSD/lending_fUSD_20250128
["ID","MTS","AMOUNT","RATE_DAILY","PERIOD"]
[350716665,1738078260716,-500.0,0.00019999,2]
[350716666,1738078260726,-966.62,0.00019999,2]
[350716667,1738078260737,-500.0,0.00019999,2]
[350716668,1738078260747,-759.44,0.00019999,2]
[350716669,1738078260757,-966.62,0.00019999,2]
[350716670,1738078260767,-759.44,0.00019999,2]
[350716671,1738078260778,-500.0,0.00019999,2]
[350716672,1738078260789,-966.62,0.00019999,2]
[350716673,1738078260800,-759.44,0.00019999,2]
[350716674,1738078260810,-157.12,0.00019999,2]
[350716675,1738078260821,-966.62,0.00019999,2]
[350716676,1738078260831,-759.44,0.00019999,2]
[350716677,1738078260841,-966.62,0.00019999,2]
[350716678,1738078260851,-966.62,0.00019999,2]
[350716679,1738078260861,-759.44,0.00019999,2]
[350716680,1738078260871,-966.62,0.00019999,2]
[350716681,1738078260881,-759.66,0.00019999,2]
[350716682,1738078260893,-966.62,0.00019999,2]
[350716683,1738078260904,-966.62,0.00019999,2]
[350716684,1738078260913,-966.84,0.00019999,2]
[350716685,1738078260924,-3001.66,0.00019999,2]
[350716686,1738078260939,-3001.66,0.00019999,2]
[350716687,1738078260950,-3001.66,0.00019999,2]
[350716688,1738078260960,-3001.66,0.00019999,2]
[350716689,1738078260970,-3001.66,0.00019999,2]
[350716690,1738078260981,-3001.66,0.00019999,2]
[350716691,1738078260991,-3001.66,0.00019999,2]
[350716692,1738078261001,-3001.66,0.00019999,2]
[350716693,1738078261011,-3001.66,0.00019999,2]
[350716694,1738078261022,-3001.66,0.00019999,2]
[350716695,1738078261032,-3001.66,0.00019999,2]
[350716696,1738078261041,-3001.78102518,0.00019999,2]
[350716697,1738078261052,-500.0,0.00019999,2]
[350716698,1738078261062,-500.0,0.00019999,2]
[350716699,1738078261072,-500.0,0.00019999,2]
[350716700,1738078261082,-500.0,0.00019999,2]
[350716701,1738078261092,-500.0,0.00019999,2]
[350716702,1738078261102,-500.0,0.00019999,2]
[350716703,1738078261112,-500.0,0.00019999,2]
[350716704,1738078261122,-1496.07,0.00019999,2]
[350716705,1738078261132,-500.0,0.00019999,2]
[350716706,1738078261142,-500.0,0.00019999,2]
[350716707,1738078261151,-500.0,0.00019999,2]
[350716708,1738078261161,-1496.07,0.00019999,2]
[350716709,1738078261171,-557.45,0.00019999,2]
[350716710,1738078261183,-1496.07,0.00019999,2]
[350716711,1738078261192,-1496.07,0.00019999,2]
[350716712,1738078261201,-1496.07,0.00019999,2]
[350716713,1738078261211,-500.0,0.00019999,2]
[350716714,1738078261221,-1496.07,0.00019999,2]
[350716715,1738078261231,-500.0,0.00019999,2]
[350716716,1738078261241,-1496.07,0.00019999,2]
[350716717,1738078261251,-500.0,0.00019999,2]
[350716718,1738078261261,-1496.07,0.00019999,2]
[350716719,1738078261271,-500.0,0.00019999,2]
[350716720,1738078261281,-1496.07,0.00019999,2]
[350716721,1738078261291,-500.0,0.00019999,2]
[350716722,1738078261301,-458.87955214,0.00019999,2]
[350716723,1738078261311,-1496.07,0.00019999,2]
[350716724,1738078261320,-1496.07,0.00019999,2]
[350716725,1738078261329,-1496.30347484,0.00019999,2]
[350716726,1738078261340,-899.34,0.00019999,2]
[350716727,1738078261350,-899.34,0.00019999,2]
[350716728,1738078261360,-899.34,0.00019999,2]
[350716729,1738078261372,-899.34,0.00019999,2]
[350716730,1738078261382,-899.34,0.00019999,2]
[350716731,1738078261392,-899.34,0.00019999,2]
[350716732,1738078261402,-899.34,0.00019999,2]
[350716733,1738078261411,-899.34,0.00019999,2]
[350716734,1738078261420,-899.34,0.00019999,2]
[350716735,1738078261431,-899.34,0.00019999,2]
[350716736,1738078261441,-899.34,0.00019999,2]
[350716737,1738078261453,-686.45,0.00019999,2]
[350716738,1738078261464,-899.53531095,0.00019999,2]
[350716739,1738078261474,-686.45,0.00019999,2]
[350716740,1738078261484,-686.45,0.00019999,2]
[350716741,1738078261495,-686.45,0.00019999,2]
[350716742,1738078261505,-686.45,0.00019999,2]
[350716743,1738078261516,-686.45,0.00019999,2]
[350716744,1738078261526,-686.45,0.00019999,2]
[350716745,1738078261535,-686.45,0.00019999,2]
[350716746,1738078261545,-686.45,0.00019999,2]
[350716747,1738078261555,-686.45,0.00019999,2]
[350716748,1738078261565,-2743.13,0.00019999,2]
[350716749,1738078261575,-686.45,0.00019999,2]
[350716750,1738078261585,-2743.13,0.00019999,2]
[350716751,1738078261595,-686.55,0.00019999,2]
[350716752,1738078261604,-2743.13,0.00019999,2]
[350716753,1738078261613,-2743.13,0.00019999,2]
[350716754,1738078261623,-2743.13,0.00019999,2]
[350716755,1738078261632,-2743.13,0.00019999,2]
[350716756,1738078261642,-2743.13,0.00019999,2]
[350716757,1738078261651,-2743.13,0.00019999,2]
[350716758,1738078261661,-2743.13,0.00019999,2]
[350716759,1738078261670,-2743.13,0.00019999,2]
[350716760,1738078261680,-658.62,0.00019999,2]
[350716761,1738078261691,-2743.13,0.00019999,2]
[350716762,1738078261702,-658.62,0.00019999,2]
[350716763,1738078261712,-658.62,0.00019999,2]
[350716764,1738078261722,-2743.2142,0.00019999,2]
[350716765,1738078261732,-658.62,0.00019999,2]
[350716766,1738078261742,-658.62,0.00019999,2]
[350716767,1738078261752,-658.62,0.00019999,2]
[350716768,1738078261762,-658.62,0.00019999,2]
[350716769,1738078261772,-658.62,0.00019999,2]
[350716770,1738078261782,-658.62,0.00019999,2]
[350716771,1738078261792,-658.62,0.00019999,2]
[350716772,1738078261802,-658.62,0.00019999,2]
[350716773,1738078261812,-658.62,0.00019999,2]
[350716774,1738078261822,-481.94,0.00019999,2]
[350716775,1738078261831,-860.35,0.00019999,2]
[350716776,1738078261841,-860.35,0.00019999,2]
[350716777,1738078261852,-860.35,0.00019999,2]
[350716778,1738078261862,-860.35,0.00019999,2]
[350716779,1738078261872,-860.35,0.00019999,2]
[350716780,1738078261881,-860.35,0.00019999,2]
[350716781,1738078261892,-860.35,0.00019999,2]
[350716782,1738078261902,-860.35,0.00019999,2]
[350716783,1738078261911,-500.0,0.00019999,2]
[350716784,1738078261920,-860.35,0.00019999,2]
[350716785,1738078261930,-860.35,0.00019999,2]
[350716786,1738078261939,-860.35,0.00019999,2]
[350716787,1738078261949,-500.0,0.00019999,2]
[350716788,1738078261960,-860.47,0.00019999,2]
[350716789,1738078261970,-500.0,0.00019999,2]
[350716790,1738078261980,-500.0,0.00019999,2]
[350716791,1738078261990,-500.0,0.00019999,2]
[350716792,1738078262000,-296.49782039,0.00019999,2]
[350716793,1738078262010,-1156.89,0.00019999,2]
[350716794,1738078262020,-1156.89,0.00019999,2]
[350716795,1738078262030,-1156.89,0.00019999,2]
[350716796,1738078262040,-1156.89,0.00019999,2]
[350716797,1738078262049,-1156.89,0.00019999,2]
[350716798,1738078262059,-1156.89,0.00019999,2]
[350716799,1738078262068,-1156.89,0.00019999,2]
[350716800,1738078262077,-1156.89,0.00019999,2]
[350716801,1738078262087,-1156.89,0.00019999,2]
[350716802,1738078262096,-1156.89,0.00019999,2]
[350716803,1738078262106,-1156.89,0.00019999,2]
[350716804,1738078262115,-947.18,0.00019999,2]
[350716805,1738078262126,-1156.95517297,0.00019999,2]
[350716806,1738078262136,-947.18,0.00019999,2]
[350716807,1738078262146,-947.18,0.00019999,2]
[350716808,1738078262155,-947.18,0.00019999,2]
[350716809,1738078262165,-947.18,0.00019999,2]
[350716810,1738078262175,-500.0,0.00019999,2]
[350716811,1738078262185,-947.18,0.00019999,2]
[350716812,1738078262195,-500.0,0.00019999,2]
[350716813,1738078262206,-947.18,0.00019999,2]
[350716814,1738078262215,-500.0,0.00019999,2]
[350716815,1738078262225,-500.0,0.00019999,2]
[350716816,1738078262235,-947.18,0.00019999,2]
[350716817,1738078262245,-500.0,0.00019999,2]
[350716818,1738078262255,-947.18,0.00019999,2]
[350716819,1738078262265,-277.59553155,0.00019999,2]
[350716820,1738078262275,-947.18,0.00019999,2]
[350716821,1738078262286,-947.18,0.00019999,2]
[350716822,1738078262296,-947.40005549,0.00019999,2]
[350716823,1738078262306,-1613.15,0.00019999,2]
[350716824,1738078262316,-1613.15,0.00019999,2]
[350716825,1738078262326,-1613.15,0.00019999,2]
[350716826,1738078262336,-1613.15,0.00019999,2]
[350716827,1738078262346,-1613.15,0.00019999,2]
[350716828,1738078262356,-1613.18,0.00019999,2]
[350716829,1738078262366,-521.54,0.00019999,2]
[350716830,1738078262379,-521.54,0.00019999,2]
[350716831,1738078262388,-521.54,0.00019999,2]
[350716832,1738078262399,-521.54,0.00019999,2]
[350716833,1738078262408,-521.54,0.00019999,2]
[350716834,1738078262418,-521.54,0.00019999,2]
[350716835,1738078262429,-521.63,0.00019999,2]
[350716836,1738078262439,-640.99,0.00019999,2]
[350716837,1738078262450,-640.99,0.00019999,2]
[350716838,1738078262460,-640.99,0.00019999,2]
[350716839,1738078262470,-640.99,0.00019999,2]
[350716840,1738078262480,-640.99,0.00019999,2]
[350716841,1738078262490,-641.08,0.00019999,2]
[350716842,1738078262500,-1111.16,0.00019999,2]
[350716843,1738078262510,-1111.16,0.00019999,2]
[350716844,1738078262519,-1111.16,0.00019999,2]
[350716845,1738078262530,-1111.16,0.00019999,2]
[350716846,1738078262540,-1111.16,0.00019999,2]
[350716847,1738078262550,-1111.16,0.00019999,2]
[350716848,1738078262561,-1111.2,0.00019999,2]
[350716849,1738078262570,-1530.86,0.00019999,2]
[350716850,1738078262580,-1530.86,0.00019999,2]
[350716851,1738078262591,-1530.86,0.00019999,2]
[350716852,1738078262601,-1530.86,0.00019999,2]
[350716853,1738078262610,-1530.86,0.00019999,2]
[350716854,1738078262620,-1530.93,0.00019999,2]
[350716855,1738078262630,-3149.0,0.00019999,2]
[350716856,1738078262640,-3149.0,0.00019999,2]
[350716857,1738078262650,-3149.0,0.00019999,2]
[350716858,1738078262660,-3149.0,0.00019999,2]
[350716859,1738078262670,-3149.0,0.00019999,2]
[350716860,1738078262681,-3149.0,0.00019999,2]
[350716861,1738078262691,-3149.17836855,0.00019999,2]
[350716862,1738078262701,-2553.16,0.00019999,2]
[350716863,1738078262710,-2553.16,0.00019999,2]
[350716864,1738078262719,-2553.16,0.00019999,2]
[350716865,1738078262729,-2553.16,0.00019999,2]
[350716866,1738078262738,-2553.16,0.00019999,2]
[350716867,1738078262748,-2553.24,0.00019999,2]
[350716868,1738078262757,-1824.09,0.00019999,2]
[350716869,1738078262766,-1824.09,0.00019999,2]
[350716870,1738078262776,-1824.09,0.00019999,2]
[350716871,1738078262786,-1824.09,0.00019999,2]
[350716872,1738078262796,-1824.09,0.00019999,2]
[350716873,1738078262805,-1824.10294281,0.00019999,2]
[350716874,1738078262815,-572.89,0.00019999,2]
[350716875,1738078262825,-1116.2,0.00019999,2]
[350716876,1738078262835,-572.89,0.00019999,2]
[350716877,1738078262844,-1116.2,0.00019999,2]
[350716878,1738078262854,-572.89,0.00019999,2]
[350716879,1738078262863,-1116.2,0.00019999,2]
[350716880,1738078262873,-1116.2,0.00019999,2]
[350716881,1738078262883,-572.89,0.00019999,2]
[350716882,1738078262892,-1116.2,0.00019999,2]
[350716883,1738078262903,-1116.31,0.00019999,2]
[350716884,1738078262912,-572.89,0.00019999,2]
[350716885,1738078262923,-572.89,0.00019999,2]
[350716886,1738078262935,-573.0,0.00019999,2]
[350716887,1738078262945,-3711.89,0.00019999,2]
[350716888,1738078262954,-3711.89,0.00019999,2]
[350716889,1738078262964,-3711.89,0.00019999,2]
[350716890,1738078262973,-3711.89,0.00019999,2]
[350716891,1738078262983,-3711.89,0.00019999,2]
[350716892,1738078262992,-3712.01,0.00019999,2]
[350716893,1738078263002,-1260.79,0.00019999,2]
[350716894,1738078263012,-1260.79,0.00019999,2]
[350716895,1738078263021,-418.67,0.00019999,2]
[350716896,1738078263031,-1260.79,0.00019999,2]
[350716897,1738078263042,-1260.79,0.00019999,2]
[350716898,1738078263051,-999.85,0.00019999,2]
[350716899,1738078263062,-1260.79,0.00019999,2]
[350716900,1738078263071,-999.85,0.00019999,2]
[350716901,1738078263081,-1260.79,0.00019999,2]
[350716902,1738078263091,-999.85,0.00019999,2]
[350716903,1738078263101,-1260.85222389,0.00019999,2]
[350716904,1738078263111,-999.85,0.00019999,2]
[350716905,1738078263121,-999.85,0.00019999,2]
[350716906,1738078263131,-999.86,0.00019999,2]
[350716907,1738078263141,-216.922782,0.00019999,2]
[350716908,1738078263151,-216.922782,0.00019999,2]
[350716909,1738078263161,-216.922782,0.00019999,2]
[350716910,1738078263171,-500.0,0.00019999,2]
[350716911,1738078263183,-500.0,0.00019999,2]
[350716912,1738078263193,-419.40367998,0.00019999,2]
[350716913,1738078263203,-216.922782,0.00019999,2]
[350716914,1738078263214,-216.922782,0.00019999,2]
[350716915,1738078263224,-758.76,0.00019999,2]
[350716916,1738078263234,-758.76,0.00019999,2]
[350716917,1738078263244,-216.922782,0.00019999,2]
[350716918,1738078263254,-758.76,0.00019999,2]
[350716919,1738078263263,-758.76,0.00019999,2]
[350716920,1738078263273,-758.76,0.00019999,2]
[350716921,1738078263283,-758.8021683,0.00019999,2]
[350716922,1738078263293,-764.78,0.00019999,2]
[350716923,1738078263303,-764.78,0.00019999,2]
[350716924,1738078263313,-764.78,0.00019999,2]
[350716925,1738078263323,-764.78,0.00019999,2]
[350716926,1738078263333,-764.78,0.00019999,2]
[350716927,1738078263343,-764.78,0.00019999,2]
[350716928,1738078263353,-764.94,0.00019999,2]
[350716929,1738078263365,-2107.54,0.00019999,2]
[350716930,1738078263380,-2107.54,0.00019999,2]
[350716931,1738078263390,-2107.54,0.00019999,2]
[350716932,1738078263401,-2107.54,0.00019999,2]
[350716933,1738078263412,-2107.54,0.00019999,2]
[350716934,1738078263423,-2107.54,0.00019999,2]
[350716935,1738078263438,-2107.54,0.00019999,2]
[350716936,1738078263448,-2107.54,0.00019999,2]
[350716937,1738078263460,-2107.54,0.00019999,2]
[350716938,1738078263472,-2107.54,0.00019999,2]
[350716939,1738078263483,-2107.54,0.00019999,2]
[350716940,1738078263494,-2107.64284681,0.00019999,2]
[350716941,1738078263504,-841.12,0.00019999,2]
[350716942,1738078263515,-1078.53,0.00019999,2]
[350716943,1738078263526,-841.12,0.00019999,2]
[350716944,1738078263537,-1078.53,0.00019999,2]
[350716945,1738078263548,-841.12,0.00019999,2]
[350716946,1738078263560,-1078.53,0.00019999,2]
[350716947,1738078263571,-1078.53,0.00019999,2]
[350716948,1738078263582,-841.12,0.00019999,2]
[350716949,1738078263592,-1078.53,0.00019999,2]
[350716950,1738078263602,-1078.53,0.00019999,2]
[350716951,1738078263612,-841.12,0.00019999,2]
[350716952,1738078263623,-1078.53,0.00019999,2]
[350716953,1738078263634,-1078.53,0.00019999,2]
[350716954,1738078263645,-841.12,0.00019999,2]
[350716955,1738078263656,-1078.53,0.00019999,2]
[350716956,1738078263666,-841.12,0.00019999,2]
[350716957,1738078263678,-1078.53,0.00019999,2]
[350716958,1738078263692,-841.12,0.00019999,2]
[350716959,1738078263703,-1078.53,0.00019999,2]
[350716960,1738078263714,-841.12,0.00019999,2]
[350716961,1738078263725,-1078.74603622,0.00019999,2]
[350716962,1738078263737,-841.12,0.00019999,2]
[350716963,1738078263748,-841.12,0.00019999,2]
[350716964,1738078263759,-841.29807874,0.00019999,2]
[350716965,1738078263770,-222.89091991,0.0002,2]
[350716966,1738078263781,-166916.44294227,0.0002,2]
[350716967,1738078263791,-3814437.43905473,0.0002,15]
[350716968,1738078263801,-900.0,0.0002,21]
[350716969,1738078263812,-2110.0,0.0002,2]
[350716970,1738078263822,-6164.14153912,0.0002,2]
[350716971,1738078263833,-6090.56705375,0.0002,2]
[350716972,1738078263843,-1500.0,0.0002,2]
[350716973,1738078263853,-5007.0,0.0002,2]
[350716974,1738078263862,-500.0,0.0002,30]
[350716975,1738078263872,-5000.0,0.0002,15]
[350716976,1738078263882,-4260.0,0.0002,15]
[350716977,1738078263891,-4459.49,0.0002,2]
[350716978,1738078264052,-16559.12,0.0002,5]
[350716979,1738078264063,-2324.33443996,0.0002,7]
[350716980,1738078264074,-306946.34433293,0.0002,30]
[350716981,1738078264085,-26038.29808138,0.0002,2]
[350716982,1738078264095,-2000.0,0.0002,2]
[350716983,1738078264105,-2000.0,0.0002,2]
[350716984,1738078264115,-903.1232,0.0002,2]
[350716985,1738078264125,-2000.0,0.0002,2]
[350716986,1738078264136,-2000.0,0.0002,2]
[350716987,1738078264146,-2000.0,0.0002,2]
[350716988,1738078264156,-2000.0,0.0002,2]
[350716989,1738078264166,-600.0,0.0002,2]
[350716990,1738078264176,-10000.0,0.0002,2]
[350716991,1738078264188,-12500.0,0.0002,2]
[350716992,1738078264198,-10000.0,0.0002,2]
[350716993,1738078264208,-12500.0,0.0002,2]
[350716994,1738078264218,-154.650165,0.0002,15]
[350716995,1738078264229,-159.0,0.0002,2]
[350716996,1738078264239,-159.0,0.0002,2]
[350716997,1738078264248,-876.399116,0.0002,2]
[350716998,1738078264258,-876.399116,0.0002,2]
[350716999,1738078264267,-876.399116,0.0002,2]
[350717000,1738078264277,-159.23294858,0.0002,2]
[350717001,1738078264287,-216.922782,0.0002,2]
[350717002,1738078264297,-216.922782,0.0002,2]
[350717003,1738078264307,-216.922782,0.0002,2]
[350717004,1738078264316,-216.922782,0.0002,2]
[350717005,1738078264326,-216.922782,0.0002,2]
[350717006,1738078264335,-216.92279,0.0002,2]
[350717007,1738078264345,-1423.13,0.0002,2]
[350717008,1738078264354,-1000.0,0.0002,2]
[350717009,1738078264369,-2000.0,0.0002001,2]
[350717010,1738078264378,-3812.862749,0.0002002,2]
[350717011,1738078264387,-25000.0,0.00020023,2]
[350717012,1738078264397,-500.0,0.00020028,2]
[350717013,1738078264407,-12500.0,0.0002004,2]
[350717014,1738078264415,-12500.0,0.0002004,2]
[350717015,1738078264425,-2520.78,0.00020054,2]
[350717016,1738078264436,-12500.0,0.0002008,2]
[350717017,1738078264446,-12500.0,0.0002008,2]
[350717018,1738078264457,-381.23,0.00020089,2]
[350717019,1738078264467,-10000.0,0.00020107,2]
[350717020,1738078264476,-10000.0,0.00020107,2]
[350717021,1738078264486,-105537.38918278,0.0002011,2]
[350717022,1738078264496,-2930.14,0.00020114,7]
[350717023,1738078264506,-2930.14,0.00020114,7]
[350717024,1738078264516,-7272.31,0.0002012,2]
[350717025,1738078264526,-12500.0,0.0002012,2]
[350717026,1738078264536,-876.39911,0.0002012,2]
[350717027,1738078264545,-594.14,0.00020125,2]
[350717028,1738078264555,-463.07,0.00020128,2]
[350717029,1738078264566,-161.80746257,0.00020132,2]
[350717030,1738078264576,-2999.65,0.00020145,2]
[350717031,1738078264586,-4091.28,0.00020145,5]
[350717032,1738078264597,-299.99,0.00020145,7]
[350717033,1738078264607,-1516.31,0.00020145,2]
[350717034,1738078264617,-499.99,0.00020145,2]
[350717035,1738078264627,-9999.99,0.00020145,2]
[350717036,1738078264637,-30735.71,0.00020145,2]
[350717037,1738078264646,-7022.46,0.00020145,2]
[350717038,1738078264656,-150.99,0.00020145,2]
[350717039,1738078264666,-150.99,0.00020145,2]
[350717040,1738078264675,-2083.8,0.00020145,2]
[350717041,1738078264687,-9999.99,0.00020145,2]
[350717042,1738078264697,-9999.99,0.00020145,2]
[350717043,1738078264707,-999.99,0.00020145,2]
[350717044,1738078264717,-1382.61,0.00020145,2]
[350717045,1738078264726,-1876.35,0.00020145,2]
[350717046,1738078264737,-9999.99,0.00020145,2]
[350717047,1738078264747,-393.75,0.00020145,2]
[350717048,1738078264757,-3209.69,0.00020145,2]
[350717049,1738078264766,-12500.0,0.0002016,2]
[350717050,1738078264776,-150.0,0.00020187,2]
[350717051,1738078264785,-215.0,0.0002019,2]
[350717052,1738078264795,-211.0,0.0002019,2]
[350717053,1738078264805,-205.0,0.0002019,2]
[350717054,1738078264814,-1772.0,0.00020191,2]
[350717055,1738078264824,-12500.0,0.000202,2]
[350717056,1738078264834,-10000.0,0.00020213,2]
[350717057,1738078264844,-10000.0,0.00020213,2]
[350717058,1738078264854,-398.8,0.00020228,2]
[350717059,1738078264864,-302.45,0.00020233,2]
[350717060,1738078264874,-2543.54,0.00020237,2]
[350717061,1738078264883,-12500.0,0.0002024,2]
[350717062,1738078264894,-594.14,0.00020262,2]
[350717063,1738078264904,-12499.99,0.0002028,2]
[350717064,1738078264914,-2539.2,0.00020284,2]
[350717065,1738078264924,-3797.61248314,0.00020304,2]
[350717066,1738078264935,-10000.0,0.0002032,2]
[350717067,1738078264945,-2930.14,0.00020388,7]
[350717068,1738078264955,-2930.14,0.00020388,7]
[350717069,1738078264965,-1772.0,0.00020391,2]
[350717070,1738078264975,-594.14,0.00020399,2]
[350717071,1738078264985,-106200.63390471,0.000204,2]
[350717072,1738078264995,-10000.0,0.00020427,2]
[350717073,1738078265006,-5000.0,0.00020464,2]
[350717074,1738078265016,-993.38,0.00020466,2]
[350717075,1738078265027,-298.24,0.00020466,2]
[350717076,1738078265037,-152.0,0.00020484,4]
[350717077,1738078265047,-268.7,0.00020499,30]
[350717078,1738078265057,-2110.0,0.000205,2]
[350717079,1738078265067,-4146.11663749,0.000205,30]
[350717080,1738078265077,-3000.0,0.000205,2]
[350717081,1738078265087,-159.23294858,0.000205,2]
[350717082,1738078265097,-215.0,0.0002051,2]
[350717083,1738078265106,-211.0,0.0002051,2]
[350717084,1738078265116,-205.0,0.0002051,2]
[350717085,1738078265126,-238.0,0.0002051,2]
[350717086,1738078265136,-211.0,0.0002051,2]
[350717087,1738078265146,-1000.0,0.00020521,2]
[350717088,1738078265156,-6253.77,0.00020533,2]
[350717089,1738078265165,-594.14,0.00020536,2]
[350717090,1738078265174,-177.64,0.00020548,2]
[350717091,1738078265187,-205.104616,0.00020548,2]
[350717092,1738078265196,-2939.83917192,0.00020552,2]
[350717093,1738078265206,-1234.43641356,0.00020552,2]
[350717094,1738078265217,-2580.54,0.00020559,2]
[350717095,1738078265227,-2500.0,0.0002056,2]
[350717096,1738078265237,-500.0,0.00020579,2]
[350717097,1738078265246,-1772.0,0.00020591,2]
[350717098,1738078265256,-25000.0,0.00020658,2]
[350717099,1738078265265,-2930.14,0.00020662,7]
[350717100,1738078265275,-2930.14,0.00020662,7]
[350717101,1738078265284,-161.80746257,0.00020666,2]
[350717102,1738078265294,-594.14,0.00020673,2]
[350717103,1738078265303,-2500.0,0.0002068,2]
[350717104,1738078265313,-7806.73582991,0.0002068,2]
[350717105,1738078265485,-2200.45424,0.0002068,2]
[350717106,1738078265500,-296.9,0.0002068,2]
[350717107,1738078265511,-1353.23790222,0.0002068,2]
[350717108,1738078265526,-1070.23528287,0.0002068,2]
[350717109,1738078265536,-20998.02,0.00020683,2]
[350717110,1738078265545,-25000.0,0.0002069,2]
[350717111,1738078265555,-150.0,0.00020692,2]
[350717112,1738078265564,-5184.42476579,0.000207,2]
[350717113,1738078265576,-1485.09389555,0.000207,2]
[350717114,1738078265588,-7620.55180168,0.000207,2]
[350717115,1738078265599,-305.91068178,0.000207,2]
[350717116,1738078265933,-151.02069759,0.000178,2]
[350717117,1738078265946,-365.97976724,0.00019178,2]
[350717118,1738078265959,-500.0,0.00019178,2]
[350717119,1738078265972,-468.25644687,0.00019178,2]
[350717120,1738078265989,-35.56355313,0.00019178,2]
[350717121,1738078266001,-503.82,0.00019178,2]
[350717122,1738078266013,-503.82,0.00019178,2]
[350717123,1738078266024,-503.82,0.00019178,2]
[350717124,1738078266037,-503.82,0.00019178,2]
[350717125,1738078266051,-701.119293,0.00019178,2]
[350717126,1738078266067,-503.82,0.00019299,2]
[350717127,1738078266079,-503.82,0.00019808,2]
[350717128,1738078266089,-503.82,0.00019989,2]
[350717129,1738078266101,-503.82,0.00019997,2]
[350717130,1738078266114,-503.82,0.00019998,2]
[350717131,1738078266127,-503.82,0.00019998,2]
[350717132,1738078266139,-7120.300458,0.000207,2]
[350717133,1738078266151,-15894.87085499,0.000207,2]
[350717134,1738078266259,-862.59948405,0.00018775,2]
[350717135,1738078266274,-142.40051595,0.00018775,2]
[350717136,1738078266287,-701.119293,0.00019178,2]
[350717137,1738078266299,-701.119293,0.00019626,2]
[350717138,1738078266312,-701.119293,0.0001999,2]
[350717139,1738078266323,-503.82,0.00019998,2]
[350717140,1738078266336,-503.82,0.00019998,2]
[350717141,1738078266348,-503.82,0.00019999,2]
[350717142,1738078266362,-503.82,0.00019999,2]
[350717143,1738078266373,-701.119293,0.00019999,2]
[350717144,1738078266384,-503.82,0.00019999,2]
[350717145,1738078266396,-701.119293,0.00019999,2]
[350717146,1738078266409,-503.82,0.00019999,2]
[350717147,1738078266420,-701.119293,0.00019999,2]
[350717148,1738078266433,-6093.51664235,0.000207,2]
[350717149,1738078266447,-1033.5981648,0.000207,2]
[350717150,1738078268946,3253.47398869,0.00011848,2]
[350717151,1738078269302,3253.47398869,0.00011905,2]
[350717152,1738078269646,3253.47398869,0.00011907,2]
[350717153,1738078269965,3253.47398869,0.00011836,2]
[350717154,1738078270263,3253.47398869,0.00011901,2]
[350717155,1738078288199,200.0,0.00011859,2]
[350717156,1738078303944,200.0,0.0001188,2]
[350717157,1738078324985,12557.62701458,0.00011885,2]
[350717158,1738078325360,12557.62701458,0.00011882,2]
[350717159,1738078325723,12557.62701458,0.00011859,2]
[350717160,1738078326043,12557.62701458,0.00011863,2]
[350717161,1738078326362,12557.62701458,0.00011862,2]
[350717162,1738078333264,549.88717534,0.0001191,2]
[350717163,1738078333604,549.88717534,0.00011863,2]
[350717164,1738078333927,549.88717534,0.0001184,2]